bitfinex-derivatives/quotes_ETHF0:USTF0_20250828
["timestamp","ask_amount","ask_price","bid_price","bid_amount"]
[1756391849477,3.2078,4567.2,4566.4,3.2078]
[1756391849687,3.2078,4567.2,4566.5,0.5364]
[1756391850479,3.2078,4566.7,4565.9,3.2078]
[1756391850884,3.4268,4566.7,4565.9,3.2078]
[1756391851383,3.4268,4566.7,4566.6,0.9126]
[1756391851384,3.2078,4566.7,4566.6,0.9126]
[1756391854189,3.2078,4567.3,4566.6,0.3762]
[1756391854486,3.2078,4567.3,4567.2,0.9126]
[1756391854879,3.2078,4567.8,4567.2,0.9126]
[1756391855286,3.42674,4567.8,4566.4,3.2078]
[1756391855489,3.2078,4567.3,4566.5,0.5364]
[1756391857888,3.2078,4567.8,4567.2,0.3762]
[1756391858091,3.2078,4567.8,4567.7,0.3769]
[1756391858389,3.2078,4567.8,4567.7,0.9144]
[1756391858784,3.2078,4568.3,4567.7,0.3769]
[1756391858985,3.2078,4568.3,4568.2,0.9144]
[1756391859189,3.2078,4568.3,4567.7,0.5375]
[1756391859788,3.2078,4568.3,4567.5,40.8]
[1756391859989,0.52307828,4568.2,4567.3,0.5375]
[1756391860186,0.21892,4568.2,4567.3,0.5375]
[1756391860383,0.52349035,4568.1,4567.3,0.5375]
[1756391860587,3.2078,4568.3,4567.3,0.5375]
[1756391860788,0.52351916,4568.2,4567.3,0.5375]
[1756391861087,0.52351916,4568.1,4567.3,0.5375]
[1756391861289,3.2078,4568.3,4567.3,0.5375]
[1756391861488,0.52392124,4568.2,4567.3,0.5375]
[1756391861694,0.52392124,4568.1,4567.3,0.5375]
[1756391861885,0.52392124,4568.0,4567.3,0.5375]
[1756391862088,0.52392124,4567.9,4567.3,0.5375]
[1756391862290,3.2078,4568.3,4567.3,0.5375]
[1756391862490,0.52413449,4568.2,4567.1,0.5375]
[1756391862691,0.52413449,4568.1,4567.1,0.5375]
[1756391862994,0.52413449,4568.0,4567.1,0.5375]
[1756391863184,0.52413449,4567.9,4567.1,0.5375]
[1756391863381,0.52413449,4567.8,4567.1,0.5375]
[1756391863586,3.2078,4568.3,4567.1,0.5375]
[1756391863788,0.52396649,4568.2,4567.1,0.5375]
[1756391864093,0.52396649,4568.1,4567.1,0.5375]
[1756391864297,3.2078,4568.3,4567.1,0.5375]
[1756391864298,0.52396649,4568.0,4567.1,0.5375]
[1756391864490,0.52396649,4567.9,4567.1,0.5375]
[1756391864683,0.52396649,4567.8,4567.1,0.5375]
[1756391864887,3.2078,4567.5,4567.1,0.5375]
[1756391865088,0.52389889,4567.4,4566.8,0.5375]
[1756391865393,0.52389889,4567.3,4566.5,0.5375]
[1756391865593,3.2078,4567.0,4566.2,0.5375]
[1756391865889,0.52397456,4566.9,4566.2,0.5375]
[1756391866094,0.52397456,4566.8,4566.7,0.3769]
[1756391866396,0.52397456,4566.8,4566.7,0.9144]
[1756391867200,0.52397456,4566.8,4566.1,41.3375]
[1756391867490,0.52397456,4566.7,4566.1,0.5375]
[1756391867685,3.2078,4567.0,4566.7,0.5375]
[1756391867884,0.52388441,4566.9,4566.8,0.3769]
[1756391868085,0.52388441,4566.9,4566.8,0.9144]
[1756391869798,0.52388441,4566.9,4566.2,0.5375]
[1756391869998,3.2078,4566.4,4565.5,0.17664289]
[1756391870193,3.2078,4566.4,4565.6,0.5375]
[1756391870194,0.52383633,4566.3,4565.6,0.5375]
[1756391870393,3.2078,4566.4,4565.6,0.5375]
[1756391870394,0.52383633,4566.2,4565.6,0.9144]
[1756391870593,0.52383633,4566.1,4565.6,0.9144]
[1756391870894,0.52383633,4566.0,4565.9,0.3769]
[1756391871687,0.52383633,4566.0,4565.9,0.9144]
[1756391871893,0.52383633,4566.0,4565.5,0.5375]
[1756391872091,0.52383633,4565.9,4565.5,0.5375]
[1756391872291,0.52383633,4565.8,4565.7,0.3769]
[1756391872492,0.52383633,4565.8,4565.5,0.5375]
[1756391872699,0.52383633,4565.7,4565.5,0.5375]
[1756391872902,0.52383633,4565.6,4565.5,0.5375]
[1756391873197,0.52383633,4565.6,4565.5,0.9144]
[1756391874197,0.52383633,4565.6,4565.4,0.21901]
[1756391874403,0.52383633,4565.5,4565.4,0.75651]
[1756391874605,0.52383633,4565.5,4565.4,0.21901]
[1756391874995,0.52383633,4565.5,4565.4,1.13341]
[1756391876709,0.52383633,4565.5,4565.4,0.21901]
[1756391877399,4.52383633,4565.5,4565.4,0.21901]
[1756391877608,4.52383633,4565.5,4564.7,0.9144]
[1756391877803,3.2078,4564.9,4564.8,0.5375]
[1756391878301,3.2078,4564.9,4564.8,0.9144]
[1756391878507,3.2078,4565.5,4564.8,0.9144]
[1756391878708,0.51057539,4565.4,4564.8,0.9144]
[1756391879007,0.51057539,4565.3,4564.8,0.9144]
[1756391879206,0.51057539,4565.2,4564.8,0.9144]
[1756391879410,3.2078,4565.5,4564.8,0.9144]
[1756391879599,0.51037457,4565.4,4564.4,0.5375]
[1756391879804,0.51037457,4565.3,4564.4,0.9144]
[1756391880007,3.2078,4565.0,4564.4,0.9144]
[1756391880505,3.2078,4564.5,4563.8,0.5375]
[1756391880707,3.2078,4564.5,4564.4,0.3769]
[1756391880911,3.2078,4564.5,4564.4,0.9144]
[1756391881809,3.2078,4564.5,4564.0,0.5375]
[1756391882114,3.2078,4564.5,4563.8,0.5375]
[1756391882808,3.2078,4563.9,4562.6,0.5375]
[1756391883009,3.2078,4563.2,4562.6,0.5375]
[1756391883311,3.2078,4563.2,4561.9,0.5375]
[1756391884908,3.2078,4562.7,4561.9,0.5375]
[1756391885500,3.2078,4562.7,4562.6,0.9144]
[1756391885701,3.2078,4563.2,4562.6,0.3769]
[1756391885907,3.2078,4563.9,4563.1,0.3769]
[1756391886105,3.2078,4563.9,4563.2,0.5373]
[1756391887119,3.2078,4563.4,4562.8,0.5373]
[1756391887709,3.2078,4562.9,4561.8,0.5373]
[1756391889313,16.19,4563.6,4561.8,0.5373]
[1756391889314,3.2078,4562.4,4561.8,0.5373]
[1756391889819,3.2078,4561.9,4561.1,0.5373]
[1756391893914,3.2078,4562.4,4561.8,0.8723]
[1756391894122,3.2078,4562.4,4561.9,0.5373]
[1756391894315,3.2078,4562.4,4562.3,0.335]
[1756391894618,3.2078,4562.4,4561.7,0.5373]
[1756391896524,3.2078,4562.4,4562.3,0.8723]
[1756391896919,5.942,4563.4,4562.3,0.8723]
[1756391896920,3.2078,4563.4,4562.4,0.5373]
[1756391897226,3.2078,4563.9,4563.3,0.8723]
[1756391897419,3.2078,4564.4,4563.8,4.0801]
[1756391897619,3.2078,4564.9,4563.9,0.5373]
[1756391897816,3.2078,4564.9,4563.9,41.3373]
[1756391898016,3.2078,4564.4,4563.9,0.5373]
[1756391898225,3.2078,4564.4,4563.3,3.7451]
[1756391898521,3.2078,4564.4,4563.3,0.5373]
[1756391899514,3.2078,4564.4,4563.6,0.5373]
[1756391899719,3.2078,4564.9,4563.6,0.5373]
[1756391900122,3.2078,4564.4,4563.7,0.5373]
[1756391904117,13.861,4565.5,4563.4,40.8]
[1756391904118,3.2078,4563.8,4563.4,40.8]
[1756391904319,3.2078,4563.8,4562.4,0.5373]
[1756391904525,0.5147011,4563.7,4562.4,0.5373]
[1756391904825,0.5147011,4563.6,4562.4,0.5373]
[1756391905026,0.5147011,4563.5,4562.4,0.5373]
[1756391905218,3.2078,4563.8,4562.4,0.5373]
[1756391905418,0.5147361,4563.7,4562.4,0.5373]
[1756391905615,3.2078,4563.3,4562.4,0.5373]
[1756391905829,0.5147361,4563.2,4562.4,0.5373]
[1756391907726,0.5147361,4563.2,4563.1,0.335]
[1756391907922,0.5147361,4563.2,4563.1,0.8723]
[1756391908520,0.5147361,4563.2,4562.4,0.5373]
[1756391909421,0.5147361,4563.2,4561.9,0.5373]
[1756391909422,3.2078,4562.8,4561.9,0.5373]
[1756391909628,0.5147361,4562.7,4561.9,0.5373]
[1756391909816,0.5147361,4562.6,4561.9,0.5373]
[1756391910021,3.2078,4562.3,4561.5,32.1133]
[1756391910229,0.50512537,4562.2,4561.5,0.5373]
[1756391910429,0.50512537,4562.1,4561.5,0.5373]
[1756391910721,0.50512537,4562.0,4561.3,3.7451]
[1756391910925,3.2078,4562.3,4561.3,3.2078]
[1756391911123,3.2078,4562.3,4562.2,0.335]
[1756391911320,3.2078,4562.3,4562.2,0.8723]
[1756391911321,3.71308565,4562.3,4562.2,0.8723]
[1756391911923,3.2078,4562.3,4562.2,0.8723]
[1756391912117,3.2078,4562.9,4562.8,0.335]
[1756391912321,3.71322513,4562.9,4562.8,0.8723]
[1756391912526,3.71322513,4562.9,4562.0,0.5373]
[1756391912725,0.50542513,4562.8,4562.0,0.5373]
[1756391914323,0.50542513,4562.8,4562.7,0.8723]
[1756391914518,0.50542513,4562.8,4561.4,3.2078]
[1756391914725,0.50542513,4562.8,4561.8,0.5373]
[1756391915131,0.50542513,4562.8,4562.7,0.8723]
[1756391915328,3.2078,4562.9,4562.8,0.8723]
[1756391916132,3.2078,4563.9,4562.9,0.5221]
[1756391916336,3.2078,4563.9,4563.8,0.8777]
[1756391917227,0.39437,4563.9,4563.8,0.8777]
[1756391917736,4.19364,4564.4,4563.8,4.8777]
[1756391917935,0.39437,4564.0,4563.9,0.5221]
[1756391918137,0.39437,4564.0,4563.9,0.8777]
[1756391920133,0.39436,4564.0,4563.9,0.8777]
[1756391921634,0.39436,4564.0,4563.9,21.7677]
[1756391921934,0.98598,4563.8,4563.2,3.2078]
[1756391922134,0.3944,4563.6,4563.5,0.3556]
[1756391922333,0.9753,4563.6,4563.5,0.8777]
[1756391922533,0.9753,4563.6,4561.9,33.14570429]
[1756391922534,0.39447,4562.8,4562.7,4.0855]
[1756391922727,0.39447,4562.8,4562.7,16.2265]
[1756391923232,0.39447,4562.8,4562.7,4.0855]
[1756391923436,0.39447,4562.8,4562.7,24.9695]
[1756391924237,0.39447,4562.8,4562.7,4.0855]
[1756391926526,3.2078,4563.9,4562.7,7.95787]
[1756391926731,3.2078,4563.9,4563.8,0.8777]
[1756391927827,3.5418,4563.9,4563.8,0.8777]
[1756391928033,3.7887,4563.9,4562.9,0.5221]
[1756391928227,3.7887,4563.9,4562.8,0.39446]
[1756391928228,3.7887,4563.9,4562.8,0.5221]
[1756391928433,3.7887,4563.9,4563.1,0.5221]
[1756391928733,0.334,4563.2,4562.7,24.0848]
[1756391928938,0.5809,4563.2,4563.1,0.3556]
[1756391929233,0.2469,4563.7,4563.1,0.8777]
[1756391929440,3.2078,4563.9,4563.2,0.5221]
[1756391930037,3.2078,4563.9,4563.8,0.8777]
[1756391930238,3.5418,4563.9,4563.8,0.8777]
[1756391930440,3.7887,4563.9,4563.8,0.8777]
[1756391931043,3.2078,4563.9,4563.8,0.8777]
[1756391931435,3.5418,4563.9,4563.8,0.8777]
[1756391931636,3.7887,4563.9,4563.8,0.8777]
[1756391932442,3.2078,4563.9,4563.8,0.8777]
[1756391933348,3.7887,4563.9,4563.8,0.8777]
[1756391933536,3.7887,4563.9,4563.3,0.5221]
[1756391933739,0.2469,4563.8,4562.8,0.5221]
[1756391933936,0.334,4562.9,4562.8,0.5221]
[1756391934137,0.5809,4562.9,4562.8,0.5221]
[1756391934334,0.2469,4563.4,4562.8,0.8777]
[1756391935844,0.2469,4563.4,4562.9,0.5221]
[1756391936047,3.2078,4563.9,4562.7,3.2078]
[1756391936246,3.2078,4563.9,4562.8,0.5221]
[1756391936446,0.2469,4563.8,4562.8,0.5221]
[1756391937448,0.334,4562.9,4562.8,0.5221]
[1756391937748,0.5809,4562.9,4562.8,0.5221]
[1756391938050,0.5809,4562.9,4562.8,0.8777]
[1756391939147,0.2469,4563.3,4562.8,0.8777]
[1756391939446,0.2469,4563.3,4563.2,0.8777]
[1756391939646,0.5809,4563.3,4563.2,0.8777]
[1756391940042,0.334,4563.3,4563.2,0.8777]
[1756391940242,3.2078,4563.9,4563.8,0.3556]
[1756391940243,3.4547,4563.9,4563.8,0.3556]
[1756391940449,3.7887,4563.9,4563.8,0.8777]
[1756391940642,3.2078,4563.9,4563.8,0.8777]
[1756391940844,3.7887,4563.9,4563.8,0.8777]
[1756391941549,3.2078,4563.9,4563.8,0.8777]
[1756391943051,9.85592,4565.6,4563.8,0.8777]
[1756391943052,3.2078,4565.6,4564.8,0.5221]
[1756391943244,3.2078,4565.6,4565.5,0.8777]
[1756391943445,3.7887,4565.6,4564.9,3.2078]
[1756391943645,3.7887,4565.6,4564.9,44.5299]
[1756391944047,3.7887,4565.6,4564.9,0.5221]
[1756391944246,3.4547,4565.6,4565.5,0.8777]
[1756391944551,3.2078,4565.6,4565.5,0.8777]
[1756391944947,3.5418,4565.6,4565.5,0.8777]
[1756391945251,3.2078,4565.6,4565.5,0.8777]
[1756391947956,3.5455,4565.6,4565.5,0.8777]
[1756391948253,0.2315,4565.5,4565.2,0.5174]
[1756391948549,0.5692,4565.3,4565.0,20.846]
[1756391948747,0.3377,4565.3,4565.1,0.5174]
[1756391948951,0.5692,4565.2,4565.1,0.5174]
[1756391949350,3.2078,4565.6,4565.1,0.3308]
[1756391949651,3.777,4565.6,4564.8,3.2078]
[1756391949851,3.777,4565.6,4565.0,21.3584]
[1756391950553,3.777,4565.6,4565.0,20.841]
[1756391950754,3.777,4565.6,4565.5,0.3308]
[1756391950957,3.777,4565.6,4565.5,0.8482]
[1756391951657,3.5455,4565.6,4565.5,0.8482]
[1756391952251,3.7738,4565.6,4565.5,0.8482]
[1756391953753,0.2283,4565.5,4565.0,20.839]
[1756391953957,3.2078,4565.6,4565.5,0.8482]
[1756391954556,3.2078,4566.1,4565.5,0.3308]
[1756391954858,3.2078,4566.1,4565.3,3.2078]
[1756391954859,3.2078,4566.1,4566.0,0.8482]
[1756391955455,3.5455,4566.1,4566.0,0.8482]
[1756391955657,3.7738,4566.1,4566.0,0.8482]
[1756391956168,3.2078,4566.1,4566.0,0.8482]
[1756391956462,3.2078,4566.6,4566.0,0.3308]
[1756391956649,3.2078,4566.6,4566.5,0.8482]
[1756391957462,3.4361,4567.1,4566.5,0.8482]
[1756391958266,0.39414,4566.6,4566.5,0.8482]
[1756391959967,0.2283,4567.4,4566.5,25.37178]
[1756391960264,0.39407,4567.4,4567.3,0.3308]
[1756391960659,0.39407,4567.4,4567.3,0.8482]
[1756391962873,0.39407,4567.4,4567.3,21.6652]
[1756391963370,0.2283,4568.1,4567.4,0.5174]
[1756391963571,0.566,4568.0,4567.9,0.8482]
[1756391963769,0.73172,4568.0,4567.9,0.8482]
[1756391964873,0.96002,4568.0,4567.9,0.8482]
[1756391965470,0.73172,4568.0,4567.9,0.8482]
[1756391965863,3.2078,4568.8,4567.9,0.8482]
[1756391966063,3.4361,4568.8,4568.7,0.8482]
[1756391966268,3.2078,4568.8,4568.7,0.8482]
[1756391966574,3.7738,4568.8,4568.7,0.8482]
[1756391967969,0.2283,4568.0,4567.9,20.803]
[1756391968273,0.566,4568.0,4567.9,21.6512]
[1756391968670,0.566,4568.0,4567.8,3.2078]
[1756391968975,0.566,4567.6,4567.5,0.8482]
[1756391969276,0.566,4567.6,4567.2,3.2078]
[1756391969277,0.2283,4567.5,4567.2,3.7252]
[1756391969469,0.566,4567.4,4567.3,0.8482]
[1756391970064,0.2283,4568.2,4567.4,0.5174]
[1756391970368,0.566,4568.2,4568.1,0.8482]
[1756391971777,0.566,4568.2,4567.2,3.2078]
[1756391971778,0.2283,4568.1,4567.3,0.5174]
[1756391972074,0.2283,4568.1,4567.4,13.993]
[1756391972277,3.2078,4568.3,4567.4,13.993]
[1756391972468,0.566,4568.2,4568.1,0.3308]
[1756391972670,0.566,4568.2,4568.1,0.8482]
[1756391973273,0.3377,4568.2,4568.1,0.8482]
[1756391973673,0.2147,4568.1,4567.6,0.5174]
[1756391973874,3.2078,4568.3,4567.4,13.993]
[1756391974078,0.2147,4568.2,4567.5,0.5174]
[1756391974784,0.3377,4568.2,4568.1,0.3308]
[1756391975083,3.2078,4568.8,4568.2,0.3308]
[1756391975277,3.2078,4568.8,4568.7,0.8482]
[1756391975779,3.7602,4568.8,4568.7,0.8482]
[1756391975980,3.5455,4568.8,4568.7,0.8482]
[1756391976379,3.2078,4568.8,4568.7,0.8482]
[1756391977688,3.7613,4568.8,4568.7,0.8482]
[1756391977882,3.5484,4568.8,4568.7,0.8482]
[1756391978075,3.2078,4568.8,4568.7,0.8482]
[1756391979083,3.7613,4568.8,4568.7,0.8482]
[1756391979479,3.7613,4568.8,4568.0,20.78]
[1756391979480,0.2129,4568.7,4568.0,20.78]
[1756391979691,0.5535,4568.7,4568.6,0.837]
[1756391979890,3.2078,4568.8,4568.6,0.837]
[1756391980190,3.2078,4568.8,4568.0,20.78]
[1756391980191,3.2078,4568.8,4568.7,0.837]
[1756391980990,3.7613,4568.8,4568.7,0.837]
[1756391982088,3.2078,4568.8,4568.7,0.837]
[1756391982685,3.7613,4568.8,4568.7,0.4989]
[1756391982890,3.5484,4568.8,4568.5,21.2749]
[1756391983091,0.5535,4568.6,4568.5,0.3381]
[1756391983485,0.3406,4568.6,4567.8,40.8]
[1756391983690,0.2129,4568.5,4567.9,21.2709]
[1756391983881,0.2129,4568.5,4568.0,20.772]
[1756391984189,0.5535,4568.1,4567.6,20.771]
[1756391984391,0.5535,4568.1,4567.5,0.4989]
[1756391984392,0.5535,4567.8,4567.7,0.837]
[1756391984577,0.5535,4567.8,4567.4,31.543]
[1756391984781,0.5535,4567.6,4567.5,0.4989]
[1756391984982,0.2129,4568.0,4567.6,0.4989]
[1756391985184,0.21891,4568.7,4567.9,0.837]
[1756391985389,0.50174141,4568.6,4567.4,52.313]
[1756391985690,0.71464141,4568.5,4567.5,0.4989]
[1756391985990,0.50174141,4568.4,4567.5,0.4989]
[1756391986293,0.50174141,4568.4,4567.4,52.313]
[1756391986294,0.2129,4568.5,4567.8,0.4989]
[1756391986589,0.50203809,4568.4,4567.8,0.4989]
[1756391986789,0.2129,4568.5,4567.8,0.4989]
[1756391986995,0.50204165,4568.4,4567.8,0.4989]
[1756391987295,0.2129,4568.5,4567.8,0.4989]
[1756391987493,0.50230901,4568.4,4567.8,0.4989]
[1756391987684,0.2129,4568.5,4567.8,0.4989]
[1756391987991,0.5535,4567.9,4567.8,0.837]
[1756391988391,0.3406,4567.9,4567.8,0.837]
[1756391989285,0.3406,4567.4,4567.3,0.4989]
[1756391989490,0.2129,4568.6,4567.3,0.837]
[1756391989689,0.50062681,4568.5,4567.3,0.837]
[1756391989992,0.50062681,4568.4,4567.4,0.4989]
[1756391990195,0.2129,4568.2,4567.4,0.4989]
[1756391990490,0.2129,4568.0,4567.4,0.4989]
[1756391990683,0.50062681,4567.9,4567.1,3.2078]
[1756391990882,0.21892,4568.7,4567.2,0.4989]
[1756391991079,0.2129,4568.5,4567.2,0.4989]
[1756391991280,0.5535,4568.5,4567.6,3.2078]
[1756391991489,1.05447443,4568.4,4568.3,0.837]
[1756391991793,1.05447443,4568.4,4567.7,0.4989]
[1756391991990,0.50097443,4568.3,4567.7,0.4989]
[1756391993393,0.71387443,4568.3,4567.7,0.837]
[1756391993591,0.50097443,4568.2,4567.7,0.837]
[1756391993785,0.5535,4568.1,4568.0,0.3381]
[1756391993990,1.05447443,4568.1,4568.0,0.837]
[1756391994190,0.50097443,4568.1,4568.0,0.837]
[1756391994388,0.2129,4568.7,4568.1,0.4989]
[1756391994689,1.05446187,4568.6,4568.5,0.83337772]
[1756391994890,0.50096187,4568.6,4568.5,0.83337772]
[1756391995489,1.06056187,4568.6,4568.5,0.83337772]
[1756391996593,0.50096187,4568.6,4568.5,0.83337772]
[1756391997396,3.2078,4568.8,4568.7,0.3381]
[1756391997692,3.2078,4568.8,4568.7,0.837]
[1756391997693,4.05159913,4568.8,4568.7,0.837]
[1756391997891,4.26809913,4568.8,4568.7,0.837]
[1756391998487,4.05159913,4568.8,4568.7,0.837]
[1756391998687,4.26809913,4568.8,4568.7,0.837]
[1756391998882,4.26809913,4568.8,4567.8,0.4989]
[1756391999089,0.50069913,4568.7,4567.9,0.4989]
[1756391999287,0.84372283,4568.6,4568.5,0.3381]
[1756391999489,1.06021483,4568.6,4568.5,0.3381]
[1756392000392,1.06021483,4568.6,4567.8,0.4989]
[1756392000696,0.2165,4568.5,4567.8,0.4989]
[1756392000895,3.2078,4568.8,4568.4,0.837]
[1756392001192,9.84638,4570.0,4567.7,61.544]
[1756392001193,0.2165,4569.1,4568.6,0.837]
[1756392001492,3.5509,4569.3,4569.2,0.837]
[1756392001697,4.26785501,4569.3,4569.2,0.837]
[1756392002395,3.70825501,4569.3,4569.2,0.837]
[1756392002593,3.2078,4569.3,4569.2,0.837]
[1756392004299,3.7674,4569.8,4569.7,0.3381]
[1756392004502,4.26771148,4569.8,4569.7,0.837]
[1756392004998,0.5596,4570.1,4570.0,0.837]
[1756392005200,0.3431,4570.1,4570.0,0.837]
[1756392005993,0.5414,4570.1,4570.0,0.837]
[1756392006899,0.3431,4570.1,4570.0,0.837]
[1756392007097,3.2078,4570.9,4570.0,0.837]
[1756392007295,0.1983,4571.0,4570.1,4.0485]
[1756392007894,3.4061,4571.5,4570.1,4.0485]
[1756392008093,0.1983,4571.3,4570.1,4.0485]
[1756392009405,0.1983,4571.1,4570.1,24.7765]
[1756392010099,0.1983,4570.8,4570.1,24.7755]
[1756392010298,0.1983,4570.8,4570.1,24.7745]
[1756392010704,0.1983,4571.2,4570.1,24.7745]
[1756392010904,0.1983,4571.0,4570.1,24.7745]
[1756392011103,3.2078,4571.5,4570.1,24.7745]
[1756392011307,0.1983,4571.3,4570.1,24.7745]
[1756392013006,0.1,4570.2,4570.1,24.7745]
[1756392013205,0.1,4570.2,4570.1,21.5617]
[1756392013806,0.1,4570.2,4570.1,0.8407]
[1756392014011,0.6062,4570.2,4570.1,0.5114]
[1756392014208,0.4115,4570.2,4570.1,0.8407]
[1756392014506,0.1,4570.2,4570.1,0.8407]
[1756392014705,0.6062,4570.2,4570.1,0.8407]
[1756392016612,0.4115,4570.2,4570.1,0.8407]
[1756392016910,0.6062,4570.2,4570.1,0.5114]
[1756392017209,0.6062,4570.2,4569.9,20.712]
[1756392017210,0.5062,4570.1,4570.0,0.8407]
[1756392017614,0.1,4570.2,4570.0,0.3293]
[1756392017819,0.1,4570.2,4570.1,0.8407]
[1756392018420,0.4115,4570.2,4570.1,21.5497]
[1756392018617,0.5062,4569.8,4569.7,21.5487]
[1756392019418,0.5062,4569.8,4569.7,0.8407]
[1756392019613,0.5062,4569.8,4569.6,23.9158]
[1756392019614,0.2947,4570.2,4569.8,0.5114]
[1756392019820,2.41740892,4573.1,4570.1,4.0485]
[1756392019821,3.2078,4571.0,4570.1,4.0485]
[1756392020017,3.2078,4571.0,4570.9,0.8407]
[1756392020216,0.1947,4571.4,4570.9,0.8407]
[1756392020515,3.2078,4572.5,4571.8,0.3293]
[1756392020719,3.2078,4572.5,4571.8,3.2078]
[1756392020924,3.4025,4572.5,4571.9,0.5114]
[1756392021316,3.4025,4572.5,4572.4,0.3293]
[1756392021317,3.714,4572.5,4572.4,0.3293]
[1756392021513,3.5193,4572.5,4572.4,0.8407]
[1756392021918,3.714,4572.5,4572.4,0.8407]
[1756392022319,0.5062,4572.5,4572.4,0.8407]
[1756392022513,0.3115,4572.5,4572.4,0.8407]
[1756392022715,3.2078,4573.5,4572.5,0.5114]
[1756392023016,0.1947,4573.4,4572.5,0.5114]
[1756392023222,0.3115,4572.6,4572.5,0.8407]
[1756392024018,0.1947,4572.9,4572.5,0.3293]
[1756392024220,0.1947,4572.9,4572.8,0.3293]
[1756392024221,0.5062,4572.9,4572.8,0.3293]
[1756392024420,0.5062,4572.9,4572.8,0.8407]
[1756392025824,3.5193,4573.5,4573.4,0.3293]
[1756392026127,3.714,4573.5,4573.4,0.8407]
[1756392026422,3.2078,4573.5,4573.4,0.8407]
[1756392026629,3.5193,4573.5,4572.8,15.58]
[1756392026825,0.1947,4573.4,4572.9,0.5114]
[1756392027022,0.1947,4573.4,4572.8,20.692]
[1756392027230,3.4025,4573.5,4572.9,0.5114]
[1756392027527,0.1947,4573.5,4572.9,0.5114]
[1756392027922,0.5062,4573.5,4573.4,0.8407]
[1756392028229,0.3115,4573.5,4573.4,0.8407]
[1756392028425,0.1947,4573.9,4573.5,0.5114]
[1756392028728,3.2078,4574.0,4573.9,0.8407]
[1756392028917,3.714,4574.0,4573.9,0.8407]
[1756392029220,3.714,4574.5,4574.4,0.3293]
[1756392030022,3.714,4574.5,4574.1,0.5114]
[1756392030221,0.1947,4574.4,4573.6,0.5114]
[1756392030925,0.1947,4575.2,4574.4,0.5114]
[1756392031227,0.3115,4574.5,4574.4,0.8407]
[1756392031424,0.1947,4575.0,4574.4,0.3293]
[1756392031623,1.54052628,4577.1,4574.9,3.5371]
[1756392031826,31.511,4579.2,4575.5,4.0485]
[1756392031827,0.3115,4575.6,4575.5,4.0485]
[1756392032022,0.5062,4575.6,4575.5,4.0485]
[1756392032226,0.3115,4575.6,4575.5,4.0485]
[1756392032628,0.3115,4575.6,4575.5,0.3293]
[1756392032824,3.5016,4575.9,4575.8,0.3293]
[1756392033024,3.6852,4575.9,4575.2,0.5114]
[1756392033327,0.4774,4575.9,4575.2,0.5114]
[1756392033831,0.1836,4575.8,4575.2,0.5114]
[1756392034424,0.4774,4575.3,4575.2,0.8407]
[1756392034820,3.3914,4575.9,4575.6,0.3293]
[1756392035021,3.2078,4575.9,4575.8,0.8407]
[1756392035222,3.2078,4575.9,4575.0,3.2078]
[1756392035223,3.6852,4575.9,4575.0,3.2078]
[1756392035425,0.1836,4575.8,4575.1,0.5114]
[1756392035625,0.2938,4575.2,4575.1,0.8407]
[1756392036035,0.475,4575.2,4575.1,0.8407]
[1756392036427,0.1812,4575.8,4575.1,0.8407]
[1756392036628,0.29,4575.3,4575.2,0.7791]
[1756392037029,3.2078,4575.9,4575.8,0.3108]
[1756392037231,3.2078,4575.9,4575.8,0.7791]
[1756392037232,3.4978,4575.9,4575.8,0.7791]
[1756392037731,3.2078,4575.9,4575.8,0.7791]
[1756392038629,3.2078,4575.9,4575.0,3.2078]
[1756392038630,3.679,4575.9,4575.4,0.4683]
[1756392038935,0.1812,4575.8,4575.2,0.4683]
[1756392039533,0.4712,4575.8,4575.7,0.7791]
[1756392040039,3.679,4575.9,4575.8,0.7791]
[1756392041130,3.679,4575.9,4575.1,0.4683]
[1756392041330,3.679,4575.9,4575.8,0.3108]
[1756392041531,3.679,4575.9,4575.8,0.7791]
[1756392041730,0.1812,4576.4,4575.8,0.3108]
[1756392041935,0.1812,4576.5,4575.7,0.4683]
[1756392042239,0.39973,4576.5,4575.7,0.4683]
[1756392042533,0.29,4575.8,4575.7,0.7791]
[1756392042838,0.4712,4575.8,4575.7,0.7791]
[1756392043036,0.4712,4575.8,4575.7,0.3108]
[1756392043244,0.29,4575.8,4575.2,0.4683]
[1756392043433,0.29,4575.7,4575.6,0.7791]
[1756392043638,0.4712,4575.7,4575.6,0.7791]
[1756392043835,3.679,4576.1,4576.0,0.3108]
[1756392044137,0.4712,4576.0,4575.9,0.3108]
[1756392044336,0.4712,4576.0,4575.9,0.7791]
[1756392044337,0.29,4576.0,4575.9,0.7791]
[1756392044729,3.2078,4576.1,4576.0,0.4683]
[1756392044931,3.679,4576.1,4576.0,0.4683]
[1756392045132,0.1812,4576.0,4575.2,0.4683]
[1756392045740,0.1812,4576.0,4575.9,0.7791]
[1756392045741,0.4712,4576.0,4575.9,0.7791]
[1756392046241,0.29,4576.0,4575.9,0.7791]
[1756392047138,0.4712,4576.0,4575.9,0.7791]
[1756392048236,0.96806281,4576.0,4575.2,0.4683]
[1756392048541,0.67959909,4575.9,4575.2,0.4683]
[1756392048742,0.1812,4576.0,4575.2,0.4683]
[1756392048931,0.1812,4575.8,4575.2,0.4683]
[1756392049133,0.49926553,4575.7,4575.1,3.2078]
[1756392049331,3.2078,4576.1,4575.2,0.4683]